Cogmind - Beta 13 @@@ ROGUE MODE // 2024.04.05 @ 14:00:12 Player: Exp. Geonium Core Result: Destroyed by Y-54 Guardian with Flak Gun Performance ------------- Evolutions (4) 2000 Regions Visited (8) 1600 Robots Destroyed (45) 225 Value Destroyed (1266) 1266 Prototype IDs (24) 480 Alien Tech Used (0) 0 Bonus (434) 434 TOTAL SCORE: 6005 Bonus ------- Follower Combat Kills 147 Aligned with FarCom 300 Friendly Fire -13 Cogmind --------- Core Integrity 0/850 Matter 289/300 Energy 100/100 System Corruption 0% Temperature Cool (0) Movement Core (50) Location -6/Extension Parts ------- > --- POWER (1) -------- (None) > --- PROPULSION (5) --- (None) > --- UTILITY (7) ------ Machine Analyzer Improved Signal Interpreter Transport Network Coupler > --- WEAPON (2) ------- (None) > --- INVENTORY (5) ---- Advanced ECM Suite AWS/Gauss Long-range Missile Launcher Longsword +1 Peak State ------------ > --- POWER ------------ Micro Nuclear Core > --- PROPULSION ------- Cesium-ion Thruster Cesium-ion Thruster Cesium-ion Thruster Cesium-ion Thruster Cesium-ion Thruster > --- UTILITY ---------- Medium Storage Unit Structural Scanner Improved Signal Interpreter Transport Network Coupler Advanced ECM Suite Hacking Suite Hacking Suite > --- WEAPON ----------- Great Maul Longsword +1 > --- INVENTORY -------- Improved Cooling System Machine Analyzer Improved Sensor Array Improved Medium Armor Plating System Shield AWS/Gauss Long-range Missile Launcher Long-range Missile Launcher [Rating: 50] Favorites ----------- Power Light Ion Engine Engine Light Ion Engine Power Core Micro Nuclear Core Propulsion Light Treads Treads Light Treads Leg Aluminum Leg Wheel Wheel Flight Unit Cesium-ion Thruster Utility High-capacity Storage Unit Device Heat Sink Storage High-capacity Storage Unit Processor Transport Network Coupler Hackware Hacking Suite Weapon Medium Laser Energy Gun Medium Laser Ballistic Gun Assault Rifle Launcher Grenade Launcher Impact Weapon Great Maul Slashing Weapon Longsword +1 Build | -11 -10 -10 -10 -9 -8 -7 -6 -6 ------- Run | Yrd Mat Min Exi Min Mat Fac Fac Ext Slots Evolved 8 | . . . . . 4 2 2 . Power . | . . . . . . . . . Propulsion 3 | . . . . . 2 1 . . Utility 5 | . . . . . 2 1 2 . Weapon . | . . . . . . . . . Parts Attached 58 | . 13 7 . 4 12 14 4 4 Power 4 | . 1 . . 1 . 2 . . Engine 2 | . 1 . . 1 . . . . Core 2 | . . . . . . 2 . . Reactor . | . . . . . . . . . Propulsion 15 | . 4 . . 2 4 5 . . Treads 6 | . 2 . . . 4 . . . Leg 2 | . 2 . . . . . . . Wheel 2 | . . . . 2 . . . . Hover . | . . . . . . . . . Flight 5 | . . . . . . 5 . . Utility 16 | . 1 1 . . 4 4 4 2 Device 7 | . . 1 . . 1 1 4 . Storage 2 | . 1 . . . . 1 . . Processor 4 | . . . . . 3 . . 1 Hackware 3 | . . . . . . 2 . 1 Protection . | . . . . . . . . . Artifact . | . . . . . . . . . Weapon 23 | . 7 6 . 1 4 3 . 2 Energy Gun 7 | . 3 4 . . . . . . Energy Cannon . | . . . . . . . . . Ballistic Gun 4 | . . . . 1 2 1 . . Ballistic Cannon . | . . . . . . . . . Launcher 7 | . 4 2 . . . . . 1 Special Weapon . | . . . . . . . . . Impact Weapon 3 | . . . . . 1 1 . 1 Slashing Weapon 2 | . . . . . 1 1 . . Piercing Weapon . | . . . . . . . . . Special Melee Weapon . | . . . . . . . . . Unidentified Prototypes 1 | . . . . . 1 . . . Parts Lost 17 | . . 1 . 5 . . . 11 Power 2 | . . . . 1 . . . 1 Propulsion 7 | . . . . 2 . . . 5 Utility 5 | . . . . . . . . 5 Weapon 3 | . . 1 . 2 . . . . Highest Loss Streak 7 | . . 1 . 5 . . . 7 To Critical Strikes . | . . . . . . . . . Average Slot Usage (%) 90 | . 84 95 100 90 82 98 95 68 Engine 10 | . 14 14 14 13 9 . . . Core 1 | . . . . . . 6 6 4 Treads 23 | . 27 28 28 18 32 . . . Flight 5 | . . . . . . 37 33 12 Device 7 | . . 9 14 14 7 2 13 7 Storage 11 | . 14 14 14 14 9 6 6 . Processor 4 | . . . . . 12 16 13 16 Hackware 2 | . . . . . . 11 13 17 Energy Gun 12 | . 10 20 28 18 . . . . Ballistic Gun 5 | . 14 3 . 4 6 4 . . Launcher 1 | . 3 3 . . . . . . Slashing Weapon 1 | . . . . . 1 6 6 5 Naked Turns . | . . . . . . . . . Heaviest Build 56 | 14 50 48 48 56 56 24 25 21 Greatest Support 80 | 20 40 40 40 40 80 25 25 25 Greatest Overweight (x) 5 | . 4 1 1 2 5 . . 1 Average Overweight (x) . | . . 1 1 1 . . . . Largest Inventory Capacity 20 | 8 20 20 20 20 20 20 10 10 Average Capacity 16 | 8 11 20 20 20 20 9 10 5 Most Carried 20 | 6 12 13 19 19 20 19 10 10 Average Carried 12 | 6 7 12 17 17 17 8 9 4 Final Capacity 20 | 8 20 20 20 20 20 10 10 5 Final Carried 20 | 6 12 13 19 15 20 10 10 5 Class Distribution -------------------- 82% | Mutant 8% | Scavenger-Scout 5% | Scavenger-Sprinter Dominant Class ---------------- Mutant | -10/Materials Mutant | -10/Mines Mutant | -10/Exiles Mutant | -9/Mines Mutant | -8/Materials Scavenger-Sprinter | -7/Factory Scavenger-Scout | -6/Factory Hacker-Sprinter | -6/Extension Resources | -11 -10 -10 -10 -9 -8 -7 -6 -6 ----------- Run | Yrd Mat Min Exi Min Mat Fac Fac Ext Matter Collected 1063 | 200 177 295 . 47 120 140 40 44 Remotely . | . . . . . . . . . Salvage Created 1295 | . 277 208 . 33 485 145 75 72 Parts 87 | . 19 8 . . 35 12 4 9 Haulers Intercepted 5 | . 2 . . . 2 1 . . Recyclers Shooed 1 | . . . . . . . . 1 Parts Field Recycled . | . . . . . . . . . Retrieved Matter . | . . . . . . . . . Parts Self-Destructed . | . . . . . . . . . Prevented . | . . . . . . . . . Kills | -11 -10 -10 -10 -9 -8 -7 -6 -6 ------- Run | Yrd Mat Min Exi Min Mat Fac Fac Ext Combat Hostiles Destroyed 24 | . 7 6 . 1 5 . 1 4 Melee 1 | . . . . . . . 1 . Guns 10 | . 2 2 . 1 5 . . . AOE 13 | . 5 4 . . . . . 4 Classes Destroyed 9 | . 4 1 . . 3 . . 1 Builder 5 | . . 1 . . 1 2 . 1 Hauler 5 | . 2 . . . 2 1 . . Recycler 2 | . 1 . . . 1 . . . Operator 5 | . 1 . . . 2 2 . . Watcher 4 | . . . . . 2 . . 2 Swarmer 4 | . . . . . . . . 4 Grunt 16 | . 7 6 . . 3 . . . Duelist 1 | . . . . . 1 . . . Sentry 2 | . . . . . 1 . 1 . Best Kill Streak 6 | . 3 2 . 1 5 2 1 6 Combat Bots Only 4 | . 3 2 . 1 3 . 1 4 Max Kills in Single Turn 2 | . 2 2 . 1 1 1 1 2 Gunslinging . | . . . . . . . . . Exploded 2 | . 2 2 . . . . . 2 Melee 1 | . . . . . . . 1 . Uniques/NPCs Destroyed 1 | . . . . 1 . . . . YI-UF0 (-9/Mines) Combat | -11 -10 -10 -10 -9 -8 -7 -6 -6 -------- Run | Yrd Mat Min Exi Min Mat Fac Fac Ext Hostile Shots Fired 220 | . 26 24 . 12 9 . 27 122 Missed 83 | . 5 4 . 5 4 . 16 49 Damage Taken 2179 | . 338 345 . 255 79 . 89 1073 Core 1037 | . 59 81 . 46 . . 27 824 Absorbed by Shields 24 | . . . . . . . . 24 Core Remaining (%) 81 | 100 . . . 25 100 100 . . Volleys Fired 47 | . 24 16 . 3 . . . 4 Largest 2 | . 2 2 . 2 . . . 1 Hottest 100 | . 70 100 . 100 . . . 43 Shots Fired 110 | . 34 28 . 6 38 . . 4 Gun 89 | . 20 25 . 6 38 . . . Cannon . | . . . . . . . . . Launcher 21 | . 14 3 . . . . . 4 Special . | . . . . . . . . . Kinetic 51 | . 10 2 . 1 38 . . . Thermal 38 | . 10 23 . 5 . . . . Explosive 21 | . 14 3 . . . . . 4 Electromagnetic . | . . . . . . . . . Robot Hit Streak 11 | . 8 3 . 3 11 . . 1 Robot Miss Streak 3 | . 2 2 . 1 3 . . 1 Penetration Max . | . . . . . . . . . Secondary Targets . | . . . . . . . . . Autonomous 39 | . . . . 1 38 . . . Shots Hit Robots 97 | . 21 18 . 4 34 12 2 6 Core Hits 55 | . 19 10 . 1 16 4 1 4 Critical Kills . | . . . . . . . . . Critical Parts Destroyed . | . . . . . . . . . Critical Strikes 1 | . . 1 . . . . . . Burn 1 | . . 1 . . . . . . Melee Attacks 56 | . . . . . 6 27 17 6 Impact 4 | . . . . . 2 2 . . Slashing 52 | . . . . . 4 25 17 6 Piercing . | . . . . . . . . . Sneak Attacks 8 | . . . . . 2 3 1 2 Combat Hostiles 1 | . . . . . . . 1 . Follow-up Attacks . | . . . . . . . . . Damage Inflicted 4654 | . 988 382 . 64 1320 813 126 961 Guns 1473 | . 149 213 . 64 1047 . . . Cannons . | . . . . . . . . . Explosions 1630 | . 839 165 . . . . . 626 Melee 1535 | . . . . . 261 813 126 335 Ramming 16 | . . 4 . . 12 . . . Kinetic 1174 | . 75 25 . 27 1047 . . . Thermal 483 | . 74 188 . 37 . . . 184 Explosive 1446 | . 839 165 . . . . . 442 Electromagnetic . | . . . . . . . . . Impact . | . . . . . . . . . Slashing 1535 | . . . . . 261 813 126 335 Piercing . | . . . . . . . . . Highest Corruption 2 | . . . . . . 2 . . Average Corruption 2 | . . . . . . 2 . . Corruption Purged . | . . . . . . . . . Corruption Blocked . | . . . . . . . . . Effects 1 | . . . . . . 1 . . Message Errors 1 | . . . . . . 1 . . Overload Shots . | . . . . . . . . . Overflow Damage 616 | . . . . . 106 217 . 293 Projectiles . | . . . . . . . . . Explosions 148 | . . . . . . . . 148 Melee 468 | . . . . . 106 217 . 145 Knockbacks . | . . . . . . . . . Impact . | . . . . . . . . . Kinetic . | . . . . . . . . . Secondary . | . . . . . . . . . Self-Inflicted Damage 147 | . 79 26 . . . . . 42 Shots 8 | . 6 1 . . . . . 1 Rammed 3 | . . 1 . . 2 . . . Targets Rammed 4 | . . 1 . . 3 . . . Kicked . | . . . . . . . . . Crushed 1 | . . . . . 1 . . . Highest Temperature 90 | . 63 90 . 18 . 4 7 . Average Temperature 15 | . 16 35 . 10 . 2 3 . Received Heat Transfer 603 | . 144 189 . . 45 . 30 195 Siege Activations . | . . . . . . . . . Robots Corrupted . | . . . . . . . . . Combat Hostiles . | . . . . . . . . . Parts Fried . | . . . . . . . . . Impact Corruptions . | . . . . . . . . . Robots Melted . | . . . . . . . . . Combat Hostiles . | . . . . . . . . . Parts Melted . | . . . . . . . . . Heat Transferred 1012 | . 222 629 . 111 . . . 50 Parts Sabotaged . | . . . . . . . . . Parts Stolen . | . . . . . . . . . Parts Stripped . | . . . . . . . . . Power Chain Reactions . | . . . . . . . . . Alert | -11 -10 -10 -10 -9 -8 -7 -6 -6 ------- Run | Yrd Mat Min Exi Min Mat Fac Fac Ext Peak Influence 366 | . 188 321 . . 217 164 240 366 Initial 117 | . . 73 . . . 15 79 117 Average 121 | . 67 188 . . 96 74 139 272 Maximum Alert Level 1 | . . 1 . . 1 . 1 1 Low Security (%) 77 | 100 100 46 . 100 84 100 95 30 Level 1 22 | . . 53 . . 15 . 4 69 Level 2 . | . . . . . . . . . Level 3 . | . . . . . . . . . Level 4 . | . . . . . . . . . Level 5 . | . . . . . . . . . High Security . | . . . . . . . . . Max Security . | . . . . . . . . . Squads Dispatched 6 | . 1 . . . . 3 2 . Investigation 2 | . 1 . . . . 1 . . Extermination . | . . . . . . . . . Reinforcement 4 | . . . . . . 2 2 . Assault . | . . . . . . . . . Garrison . | . . . . . . . . . Intercept . | . . . . . . . . . Searches Triggered . | . . . . . . . . . Construction Impeded . | . . . . . . . . . Haulers Reinforced . | . . . . . . . . . Active Scanning Responses . | . . . . . . . . . Cargo Convoy Interrupts . | . . . . . . . . . Stealth | -11 -10 -10 -10 -9 -8 -7 -6 -6 --------- Run | Yrd Mat Min Exi Min Mat Fac Fac Ext Distress Signals 3 | . . . . . 1 1 . 1 Communications Jammed . | . . . . . . . . . Distress Signals . | . . . . . . . . . Times Spotted 54 | . 8 10 . 1 10 8 5 12 Peak Tracking Total 7 | . 3 2 . 1 3 4 5 7 Tactical Retreats 5 | . . 1 . . . 1 2 1 Traps | -11 -10 -10 -10 -9 -8 -7 -6 -6 ------- Run | Yrd Mat Min Exi Min Mat Fac Fac Ext Traps Triggered 5 | . 1 . . . . 2 . 2 Indirectly . | . . . . . . . . . Trap Hack Attempts . | . . . . . . . . . Triggered . | . . . . . . . . . Disarmed . | . . . . . . . . . Reprogrammed . | . . . . . . . . . Reused . | . . . . . . . . . Traps Extracted . | . . . . . . . . . Installed . | . . . . . . . . . Triggered . | . . . . . . . . . Machines | -11 -10 -10 -10 -9 -8 -7 -6 -6 ---------- Run | Yrd Mat Min Exi Min Mat Fac Fac Ext Machines Disabled 12 | . . 6 . . 1 . 1 4 Max in Single Turn 4 | . . . . . 1 . 1 4 Energy Cycler 3 | . . . . . . . . 3 Machines Repaired . | . . . . . . . . . Machines Dismantled . | . . . . . . . . . Machines Sabotaged . | . . . . . . . . . Overloaded Fab Kills . | . . . . . . . . . Hacking | -11 -10 -10 -10 -9 -8 -7 -6 -6 --------- Run | Yrd Mat Min Exi Min Mat Fac Fac Ext Machines Accessed 24 | . 3 1 1 . 2 10 2 5 Terminals 18 | . 3 . . . 2 6 2 5 Fabricators 3 | . . . . . . 3 . . Repair Stations . | . . . . . . . . . Recycling Units . | . . . . . . . . . Scanalyzers . | . . . . . . . . . Garrison Access 1 | . . . . . . 1 . . Total Hacks 59 | . 12 1 1 . 6 25 4 10 Successful 24 | . 4 1 1 . 3 11 1 3 Failed 35 | . 8 . . . 3 14 3 7 Catastrophic 13 | . 4 . . . . 5 . 4 Database Lockouts . | . . . . . . . . . Manual 44 | . 9 . 1 . 4 21 . 9 Terminals 49 | . 12 . . . 6 17 4 10 Fabricators 6 | . . . . . . 6 . . Repair Stations . | . . . . . . . . . Recycling Units . | . . . . . . . . . Scanalyzers . | . . . . . . . . . Garrison Access 2 | . . . . . . 2 . . Terminal Hacks 14 | . 3 1 1 . 2 3 1 3 Record 1 | . . . . . 1 . . . Open Door 1 | . . 1 . . . . . . Level Access Points 1 | . . . . . 1 . . . Branch Access Points 2 | . . . . . . 1 1 . Terminal Index 3 | . 1 . . . . 1 . 1 Locate Traps 2 | . 1 . . . . . . 1 Recall Reinforcements 1 | . . . . . . 1 . . Zone Layout 2 | . 1 . . . . . . 1 Derelict Proto ID Bank 1 | . . . 1 . . . . . Fabricator Hacks 2 | . . . . . . 2 . . Network Status 1 | . . . . . . 1 . . Build 1 | . . . . . . 1 . . Repair Station Hacks . | . . . . . . . . . Recycling Unit Hacks . | . . . . . . . . . Scanalyzer . | . . . . . . . . . Garrison Access Hacks . | . . . . . . . . . Unauthorized Hacks 8 | . 1 . . . 1 6 . . Terminals 5 | . 1 . . . 1 3 . . Track 1 | . . . . . . 1 . . Assimilate 2 | . . . . . 1 1 . . Operators 2 | . 1 . . . . 1 . . Fabricators 3 | . . . . . . 3 . . Liberate 2 | . . . . . . 2 . . Haulers 1 | . . . . . . 1 . . Repair Stations . | . . . . . . . . . Recycling Units . | . . . . . . . . . Scanalyzers . | . . . . . . . . . Garrison Access . | . . . . . . . . . Data Cores Recovered 2 | . . . . . 2 . . . Used . | . . . . . . . . . Hacking Detections 19 | . 3 . . . 2 8 2 4 Full Trace Events 1 | . . . . . . 1 . . Feedback Events . | . . . . . . . . . Feedback Blocked . | . . . . . . . . . Robot Schematics Acquired . | . . . . . . . . . Robots Built 2 | . . . . . . 2 . . Authchips . | . . . . . . . . . Time 134 | . . . . . . 134 . . Total Robot Build Rating 8 | . . . . . . 8 . . Part Schematics Acquired . | . . . . . . . . . Parts Built . | . . . . . . . . . Authchips . | . . . . . . . . . Time . | . . . . . . . . . Total Part Build Rating . | . . . . . . . . . Parts Repaired . | . . . . . . . . . Time . | . . . . . . . . . Parts Recycled . | . . . . . . . . . Recycled Matter . | . . . . . . . . . Retrieved Matter . | . . . . . . . . . Retrieved Components . | . . . . . . . . . Parts Scanalyzed . | . . . . . . . . . Part Schematics Acquired . | . . . . . . . . . Parts Damaged . | . . . . . . . . . Bothacking | -11 -10 -10 -10 -9 -8 -7 -6 -6 ------------ Run | Yrd Mat Min Exi Min Mat Fac Fac Ext Used RIF Installer . | . . . . . . . . . Robots Hacked . | . . . . . . . . . Non-combat . | . . . . . . . . . Combat . | . . . . . . . . . Robot Hacks Applied . | . . . . . . . . . Relay Couplers Released . | . . . . . . . . . Fabnet Peak Effective % . | . . . . . . . . . Robots Rewired . | . . . . . . . . . Allies Hacked . | . . . . . . . . . Hacks Repelled . | . . . . . . . . . Allies | -11 -10 -10 -10 -9 -8 -7 -6 -6 -------- Run | Yrd Mat Min Exi Min Mat Fac Fac Ext Total Allies 12 | . . 2 . 3 1 2 . 4 Largest Group 4 | . . 2 . 3 1 2 . 4 Highest-Rated Group 115 | . . 41 . 40 10 74 . 115 Highest-Rated Ally 39 | . . 31 . 16 10 37 . 39 Total Orders . | . . . . . . . . . Ally Attacks 26 | . . 14 . 3 . . . 9 Total Damage 783 | . . 494 . 18 . . . 271 Kills 6 | . . 5 . . . . . 1 Allies Corrupted . | . . . . . . . . . Allies Melted . | . . . . . . . . . Intel | -11 -10 -10 -10 -9 -8 -7 -6 -6 ------- Run | Yrd Mat Min Exi Min Mat Fac Fac Ext Robot Analysis Total . | . . . . . . . . . Derelict Logs Recovered 1 | . . . . 1 . . . . Drone Launches . | . . . . . . . . . Drone Recoveries . | . . . . . . . . . Exploration | -11 -10 -10 -10 -9 -8 -7 -6 -6 ------------- Run | Yrd Mat Min Exi Min Mat Fac Fac Ext Turns Passed 3394 | 4 703 897 543 141 515 273 203 115 Spaces Moved 2678 | 4 292 350 225 73 285 704 504 241 Core 29 | . 1 . . . . . . 28 Treads 1129 | . 290 350 225 33 231 . . . Legs 5 | 4 1 . . . . . . . Wheels 94 | . . . . 40 54 . . . Hover . | . . . . . . . . . Flight 1421 | . . . . . . 704 504 213 Fastest Speed 23 | 120 160 240 240 110 110 23 23 23 Average Speed 106 | 120 180 240 240 168 157 23 23 33 Slowest Speed 250 | 120 250 240 240 240 167 23 23 109 Overloaded Moves . | . . . . . . . . . Propulsion Burnouts . | . . . . . . . . . Robots Hopped . | . . . . . . . . . Cave-ins Triggered . | . . . . . . . . . Exploration Rate (%) 34 | 2 48 54 61 34 31 21 15 46 Regions Visited 8 Branch Regions 4 Pre-discovered Areas 1 | . . 1 . . . . . . Known Exits Taken 3 | . . . . . 1 1 1 . Unknown Exits Taken 5 | 1 1 1 1 1 . . . . Scrap Searched . | . . . . . . . . . Spaces Dug 32 | . 6 . . . 2 10 14 . Terrain Destroyed 223 | . 88 21 . . 20 10 14 70 Melee 26 | . . . . . 2 10 14 . Projectile 18 | . . . . . 18 . . . AOE 179 | . 88 21 . . . . . 70 Terrain Rammed . | . . . . . . . . . Walls Destroyed . | . . . . . . . . . Machines Disabled . | . . . . . . . . . Actions | -11 -10 -10 -10 -9 -8 -7 -6 -6 --------- Run | Yrd Mat Min Exi Min Mat Fac Fac Ext Total 3104 | 3 431 376 229 85 344 798 573 265 Wait 161 | . 91 1 . 5 18 1 45 . Move 2670 | 3 291 349 224 72 284 703 503 241 Hop . | . . . . . . . . . Pick Up 43 | . 7 2 5 1 10 13 2 3 Fast Attach 11 | . 3 1 . . 4 2 . 1 Attach 26 | . 2 1 . 4 7 8 2 2 Detach 9 | . . . . . 6 1 1 1 Swap 21 | . 8 5 . . 1 4 2 1 Drop 38 | . 5 . . . 5 23 1 4 Fire 47 | . 24 16 . 3 . . . 4 Melee 54 | . . . . . 6 25 17 6 Ram . | . . . . . . . . . Kick . | . . . . . . . . . Crush 4 | . . 1 . . 3 . . . Escape Stasis 20 | . . . . . . 18 . 2 Rewire . | . . . . . . . . . Trap . | . . . . . . . . . Miscellaneous . | . . . . . . . . . Route ------- -11/Scrapyard -10/Materials (discovered 2 exits: [*Mat] / *Min) -10/Mines (discovered 3 exits: [*Mat x2] / *Exi) -10/Exiles -9/Mines -8/Materials (discovered 3 exits: *Fac x3) -7/Factory (discovered 3 exits: *Fac / *Low x2) -6/Factory (discovered 5 exits: *Fac / *Low x2 / *Ext x2) -6/Extension (discovered 1 exit: *Fac) History --------- Turn | Location | Event 1 | -11/Scrapyard | Discovered new exit (range 3) 5 | -11/Scrapyard | Entered Materials 310 | -10/Materials | Build established: Mutant 394 | -10/Materials | Discovered new exit (range 7) 627 | -10/Materials | Discovered new exit (range 7) 708 | -10/Materials | Entered Mines 735 | -10/Mines | Discovered new exit (range 16) 774 | -10/Mines | Learned location of Storage (-8) 876 | -10/Mines | A weapon hastily lodged in a ceiling crevice suddenly fell to the ground 1023 | -10/Mines | Discovered new exit (range 5) 1390 | -10/Mines | Core integrity fell below 50% 1418 | -10/Mines | Found the Drone Emporium 1432 | -10/Mines | Found Prototype Device 1596 | -10/Mines | Deemed a non-threat by the Exiles lab entrance 1596 | -10/Mines | Discovered new exit (range 5) 1605 | -10/Mines | Entered Exiles 1668 | -10/Exiles | Met 8R-AWN 1707 | -10/Exiles | Met EX-HEX 1781 | -10/Exiles | Met EX-BIN 1810 | -10/Exiles | Aligned with FarCom system 1812 | -10/Exiles | Given EX-Vault access code 1889 | -10/Exiles | Opened EX-Vault 1906 | -10/Exiles | Found AWS/Gauss 1917 | -10/Exiles | Found Longsword +1 1970 | -10/Exiles | Warned to stay clear of 0b10 Research branches 1988 | -10/Exiles | Exiles lab attacked by MAIN.C 2119 | -10/Exiles | Discovered new exit (range 14) 2148 | -10/Exiles | Stole two prototypes: AWS/Gauss, Longsword +1 2148 | -10/Exiles | Entered Mines 2160 | -9/Mines | Assisted by bots powering up and referring to "LRC-V3" 2187 | -9/Mines | Learned Materials garrison access intel 2242 | -9/Mines | Destroyed YI-UF0 2260 | -9/Mines | Lost 4 allies 2270 | -9/Mines | Lost 5 parts (1p2n2w) 2271 | -9/Mines | Discovered new exit (range 16) 2289 | -9/Mines | Entered Materials 2289 | -8/Materials | Evolved 4 slots: Propulsion x2, Utility x2 2290 | -8/Materials | Loaded intel: 1 garrison access location 2421 | -8/Materials | Identified Sensor Drone Bay 2664 | -8/Materials | Identified exit to Factory 2804 | -8/Materials | Entered Factory 2804 | -7/Factory | Evolved 2 slots: Propulsion x1, Utility x1 2806 | -7/Factory | FarCom data flow suspended 2933 | -7/Factory | Identified exit to Lower Caves 3046 | -7/Factory | Fabricated P-60 Hacker? 3073 | -7/Factory | Discovered new exit (range 14) 3076 | -7/Factory | Identified exit to Factory 3077 | -7/Factory | Entered another Factory area 3077 | -6/Factory | Evolved 2 slots: Utility x2 3132 | -6/Factory | Discovered new exit (range 5) 3140 | -6/Factory | Identified exit to Lower Caves 3140 | -6/Factory | Identified exit to Extension 3273 | -6/Factory | Discovered new exit (range 14) 3280 | -6/Factory | Entered Extension 3317 | -6/Extension | Energy Cycler disabled 3317 | -6/Extension | Rescued a captive Derelict 3318 | -6/Extension | Rescued a captive Derelict 3319 | -6/Extension | Rescued a captive Derelict 3322 | -6/Extension | Rescued a captive Derelict 3322 | -6/Extension | Rescued a captive Derelict 3324 | -6/Extension | Rescued a captive Derelict 3344 | -6/Extension | Lost 4 parts (3n1u) 3378 | -6/Extension | Spotted B-75 Beast 3383 | -6/Extension | Spotted B-75 Beast 3385 | -6/Extension | Discovered new exit (range 16) 3389 | -6/Extension | Core integrity fell below 50% 3393 | -6/Extension | Core integrity fell below 20% 3394 | -6/Extension | Identified exit to Factory 3395 | -6/Extension | Destroyed by Y-54 Guardian with Flak Gun Last Messages --------------- 03367_ >> Machine Analyzer network decryption results: 03367_ Repair Station x1 03367_ Terminal x1 03368_ Destroyed Imp. Hover Unit. 03375_ Connecting with Terminal... >>Layout(Zone) Retrieving Zone 5S layout... Downloaded map data. 03378_ Machine disabled. 03378_ Mic. Nuclear Core destroyed. 03378_ Cesium-ion Thruster destroyed. 03383_ Machine disabled. 03384_ Hacking Suite destroyed. 03385_ EXIT=FOUND 03386_ System Shield destroyed. 03388_ Hacking Suite destroyed. 03389_ Machine disabled. 03393_ Acquired 5 matter. 03394_ EXIT=IDENTIFIED: FACTORY 03395_ Structural Scanner destroyed. Map ----- +----------------------------------------------------+ | ####???## ##??## ##???????# #####??????????????? | | ???????## ##??## ##???????# #T###??????????????? | | ???????##!] ##??## ##???????# # #??????????????? | | ???????## ##??## ##???????# #??????????????? | | ???????## / ##??##%##??????## # ###??????????????? | | ???????## ] ##??## ##??????## "####??????????????? | | ????????######??## ##??????## ##?????????????????? | | ????????######??## ########## ##?????????????????? | | ??????????????#### ########## ####???????????????? | | ??????????????#### ### ## ### ####???????????????? | | ??????????????##" Y "" ""##???????????????? | | ??????????????## % " ##???????????????? | | ??????????????## ##???????????????? | | ???????????##### u ###########??????? | | ???????????##### R ###########??????? | | ??????????? ????? | | ??????????? % ????? | | ?????????? ????? | | ????????? k ?????? | | ??????? BB u u ?????? | | ???????######### BB BB ############?????? | | ???????######### BB ############?????? | | ??????????????## ##???????????????? | | ??????????????## ##???????????????? | | ??????????????## ##???????????????? | | ??????????????#######T# @########???????????????? | | ??????????????######### < ########???????????????? | | ???????????????????#########?????????????????????? | | | | | | | | | | | | | | | | | | | | | | | | | | | | | | | | | | | | | | | | | | | | | +----------------------------------------------------+ Best States ------------- Heat Dissipation 41 Energy Generation 15 Energy Capacity 250 Matter Stores 300 Matter Capacity 300 Sight Range 16 Robot Scan Range 15 Terrain Scan Density 10 ECM Strength 2 Evasion (%) 65 Targeting Accuracy 8 Recoil Reduction 4 Offensive Hacking 20 Defensive Hacking 10 Item Schematics ----------------- None Robot Schematics ------------------ None Fabricated ------------ P-60 Hacker | x2 | -7/Factory | Preloaded Alien Tech Used ----------------- None Achievements -------------- None Challenges ------------ None Game ------ Seed SchematicDeepThermoblaster Manual? 0 Play Time 00:52:10 Cumulative 469.0 hours Start 2024.04.04 @ 15:31:52 End 2024.04.05 @ 14:00:12 Sessions 3 Manual Loads 0 Difficulty Rogue Special Mode None Game No. 519 Rogue 519 Adventurer 0 Explorer 0 Win Type - Total 13 Types 9/0/3/1/0/0/0/0/0 Lore% 81 Gallery% 90 Achievement% 81 Wizard Run 0 Options --------- Layout 0 ASCII 0 Keyboard 0 Movement Numpad Keybinds 0 Fullscreen 1 Font 18/Terminus Map View 76x50 Zoom Use 0% Tactical HUD 1 Map Filters NONE Filters NONE Steam 1 RUN: 9832b5a2-2fdd-4cf8-af8d-ee5b9ca99c13